[Event "Early-Titled-Tuesday-Blitz-April-23-2024"]
[Site "Chess.com"]
[Date "2024.04.23"]
[Round "6"]
[White "Naruto75_3"]
[Black "ReadySkate"]
[Result "0-1"]
[WhiteElo "2391"]
[BlackElo "2658"]
[TimeControl "180+1"]
[EndTime "9:09:02 PDT"]
[Termination "ReadySkate won on time"]

1. d4 {[%clk 0:03:00.9]} 1... Nf6 {[%clk 0:02:58.3]} 2. c4 {[%clk 0:03:00.4]}
2... g6 {[%clk 0:02:58.5]} 3. Nc3 {[%clk 0:02:59.5]} 3... d5 {[%clk 0:02:57.5]}
4. cxd5 {[%clk 0:02:58.9]} 4... Nxd5 {[%clk 0:02:57.9]} 5. e4 {[%clk 0:02:59.5]}
5... Nxc3 {[%clk 0:02:56.8]} 6. bxc3 {[%clk 0:03:00.4]} 6... Bg7 {[%clk
0:02:57.1]} 7. Be3 {[%clk 0:03:00.8]} 7... O-O {[%clk 0:02:56.5]} 8. Rc1 {[%clk
0:03:01]} 8... c5 {[%clk 0:02:56.5]} 9. Be2 {[%clk 0:03:01.4]} 9... cxd4 {[%clk
0:02:54]} 10. cxd4 {[%clk 0:03:02.3]} 10... Nc6 {[%clk 0:02:54.5]} 11. Nf3
{[%clk 0:03:00.9]} 11... Bg4 {[%clk 0:02:51.9]} 12. d5 {[%clk 0:02:59]} 12...
Bxf3 {[%clk 0:02:49]} 13. Bxf3 {[%clk 0:02:57.9]} 13... Ne5 {[%clk 0:02:49.3]}
14. Be2 {[%clk 0:02:53.7]} 14... Rc8 {[%clk 0:02:48.9]} 15. O-O {[%clk
0:02:50.6]} 15... a6 {[%clk 0:02:45.5]} 16. Qb3 {[%clk 0:02:46]} 16... b5 {[%clk
0:02:43.3]} 17. f4 {[%clk 0:02:42.9]} 17... Nd7 {[%clk 0:02:41.5]} 18. Bg4
{[%clk 0:02:29.3]} 18... Rxc1 {[%clk 0:02:28.2]} 19. Rxc1 {[%clk 0:02:30.2]}
19... Nb6 {[%clk 0:02:28]} 20. h3 {[%clk 0:02:10.5]} 20... Nc4 {[%clk 0:02:25]}
21. Bf2 {[%clk 0:02:09]} 21... Qd6 {[%clk 0:02:23.6]} 22. Qf3 {[%clk 0:02:05.9]}
22... h5 {[%clk 0:02:19.2]} 23. e5 {[%clk 0:01:58.8]} 23... Qd8 {[%clk
0:02:16.2]} 24. Bxh5 {[%clk 0:01:50.8]} 24... gxh5 {[%clk 0:02:17.1]} 25. Rd1
{[%clk 0:01:49.9]} 25... Qa5 {[%clk 0:01:30.2]} 26. Qxh5 {[%clk 0:01:39.1]}
26... Qxa2 {[%clk 0:01:28.4]} 27. Bc5 {[%clk 0:01:34.4]} 27... Qc2 {[%clk
0:01:25.4]} 28. Bd4 {[%clk 0:01:04.6]} 28... b4 {[%clk 0:01:09.7]} 29. Qg4
{[%clk 0:01:01.5]} 29... b3 {[%clk 0:01:02.8]} 30. f5 {[%clk 0:00:56]} 30... f6
{[%clk 0:00:58.2]} 31. d6 {[%clk 0:00:50.4]} 31... Nxd6 {[%clk 0:00:43.6]} 32.
exd6 {[%clk 0:00:40.7]} 32... exd6 {[%clk 0:00:43.3]} 33. Re1 {[%clk 0:00:29.6]}
33... b2 {[%clk 0:00:28.4]} 34. Bxb2 {[%clk 0:00:22.3]} 34... Qxb2 {[%clk
0:00:29.3]} 35. Re7 {[%clk 0:00:19.8]} 35... Qc1+ {[%clk 0:00:27]} 36. Kh2
{[%clk 0:00:18]} 36... Qh6 {[%clk 0:00:27.6]} 37. Qc4+ {[%clk 0:00:17]} 37...
Kh8 {[%clk 0:00:27.3]} 38. Re4 {[%clk 0:00:16.6]} 38... Qd2 {[%clk 0:00:20.4]}
39. Rh4+ {[%clk 0:00:15.2]} 39... Bh6 {[%clk 0:00:20.8]} 40. Rd4 {[%clk
0:00:08.1]} 40... Qe3 {[%clk 0:00:18.8]} 41. Re4 {[%clk 0:00:07]} 41... Qf2
{[%clk 0:00:18.9]} 42. Rh4 {[%clk 0:00:04]} 42... Qd2 {[%clk 0:00:15.2]} 43. Rd4
{[%clk 0:00:02.9]} 43... Qc1 {[%clk 0:00:15.8]} 44. Qd3 {[%clk 0:00:02.1]} 44...
Bf4+ {[%clk 0:00:15.6]} 45. g3 {[%clk 0:00:01.2]} 45... Bg5 {[%clk 0:00:15.9]}
0-1

[Event "Early-Titled-Tuesday-Blitz-April-23-2024"]
[Site "Chess.com"]
[Date "2024.04.23"]
[Round "6"]
[White "Aygehovit1992"]
[Black "lupta_robin"]
[Result "0-1"]
[WhiteElo "2731"]
[BlackElo "2588"]
[TimeControl "180+1"]
[EndTime "9:09:03 PDT"]
[Termination "lupta_robin won on time"]

1. e4 {[%clk 0:02:43.9]} 1... Nc6 {[%clk 0:02:59.2]} 2. Nf3 {[%clk 0:02:43.4]}
2... f5 {[%clk 0:02:59.8]} 3. e5 {[%clk 0:02:41]} 3... d6 {[%clk 0:03:00.1]} 4.
Bb5 {[%clk 0:02:40]} 4... dxe5 {[%clk 0:03:00]} 5. Nxe5 {[%clk 0:02:39.8]} 5...
Qd5 {[%clk 0:03:00.6]} 6. Qe2 {[%clk 0:02:40]} 6... Qxg2 {[%clk 0:02:54.9]} 7.
Rf1 {[%clk 0:02:40.2]} 7... Nf6 {[%clk 0:02:50]} 8. Nc3 {[%clk 0:02:39.4]} 8...
e6 {[%clk 0:02:41.9]} 9. d4 {[%clk 0:02:26.9]} 9... Bb4 {[%clk 0:02:21.1]} 10.
Bd2 {[%clk 0:02:26.5]} 10... O-O {[%clk 0:02:17.2]} 11. Nxc6 {[%clk 0:02:14.6]}
11... bxc6 {[%clk 0:02:16.3]} 12. Bd3 {[%clk 0:02:12.8]} 12... Nd5 {[%clk
0:02:09.9]} 13. O-O-O {[%clk 0:02:01.6]} 13... Nxc3 {[%clk 0:02:05.9]} 14. Bxc3
{[%clk 0:02:01.6]} 14... Bxc3 {[%clk 0:02:06.1]} 15. bxc3 {[%clk 0:02:02.5]}
15... Rb8 {[%clk 0:01:56.2]} 16. Rg1 {[%clk 0:02:02.4]} 16... Qxh2 {[%clk
0:01:49.8]} 17. Qe3 {[%clk 0:01:41.5]} 17... Qd6 {[%clk 0:01:44.6]} 18. Rg5
{[%clk 0:01:27.5]} 18... Rf7 {[%clk 0:01:40.7]} 19. Rh1 {[%clk 0:01:22.2]} 19...
Bd7 {[%clk 0:01:38.1]} 20. Rgh5 {[%clk 0:01:22]} 20... g6 {[%clk 0:01:33.1]} 21.
Qg5 {[%clk 0:01:19.5]} 21... Qe7 {[%clk 0:01:28.2]} 22. Qg3 {[%clk 0:01:14.4]}
22... c5 {[%clk 0:01:20.3]} 23. dxc5 {[%clk 0:00:48.3]} 23... Qxc5 {[%clk
0:01:19.7]} 24. Kd2 {[%clk 0:00:29.8]} 24... e5 {[%clk 0:01:15.1]} 25. Qg5
{[%clk 0:00:03.8]} 25... Qxf2+ {[%clk 0:01:10.4]} 26. Be2 {[%clk 0:00:03.5]}
26... Qf4+ {[%clk 0:00:50.6]} 27. Qxf4 {[%clk 0:00:03.6]} 27... exf4 {[%clk
0:00:51.5]} 28. R5h4 {[%clk 0:00:04.5]} 28... Bc6 {[%clk 0:00:46.4]} 29. Rg1
{[%clk 0:00:05]} 29... Rd8+ {[%clk 0:00:44.7]} 30. Kc1 {[%clk 0:00:05.5]} 30...
Re7 {[%clk 0:00:39.8]} 31. Bd3 {[%clk 0:00:05.8]} 31... f3 {[%clk 0:00:36.4]}
32. Rc4 {[%clk 0:00:06]} 32... Bd5 {[%clk 0:00:35.3]} 33. Rd4 {[%clk 0:00:05.9]}
33... Red7 {[%clk 0:00:28.8]} 34. Rd1 {[%clk 0:00:03.8]} 34... Bf7 {[%clk
0:00:26.8]} 35. Rf4 {[%clk 0:00:02.6]} 35... Bxa2 {[%clk 0:00:23.4]} 36. Rxf3
{[%clk 0:00:02.8]} 36... Bf7 {[%clk 0:00:22.7]} 37. Rf4 {[%clk 0:00:03.3]} 37...
Kg7 {[%clk 0:00:22.8]} 38. Ra4 {[%clk 0:00:03]} 38... c5 {[%clk 0:00:23.2]} 39.
c4 {[%clk 0:00:02.8]} 39... f4 {[%clk 0:00:21]} 40. Rf1 {[%clk 0:00:03]} 40...
g5 {[%clk 0:00:21.2]} 41. Ra5 {[%clk 0:00:03.2]} 41... Rc7 {[%clk 0:00:20.5]}
42. Rg1 {[%clk 0:00:03.3]} 42... h6 {[%clk 0:00:20.3]} 43. Ra6 {[%clk
0:00:03.6]} 43... Rdd7 {[%clk 0:00:19.2]} 44. Rh1 {[%clk 0:00:03.9]} 44... h5
{[%clk 0:00:18.6]} 45. Rg1 {[%clk 0:00:04]} 45... g4 {[%clk 0:00:18.9]} 46. Bf5
{[%clk 0:00:02.5]} 46... Rd4 {[%clk 0:00:19.1]} 47. Bd3 {[%clk 0:00:01.9]} 47...
Bxc4 {[%clk 0:00:18]} 48. Rg6+ {[%clk 0:00:01.3]} 48... Kf7 {[%clk 0:00:18]} 49.
Bf5 {[%clk 0:00:01.7]} 49... Rd5 {[%clk 0:00:16.1]} 50. Rg5 {[%clk 0:00:02.2]}
50... Kf6 {[%clk 0:00:16.2]} 51. Rxh5 {[%clk 0:00:02.3]} 51... Rxf5 {[%clk
0:00:16.6]} 52. Rh6+ {[%clk 0:00:02.7]} 52... Kg5 {[%clk 0:00:17.2]} 0-1

[Event "Early-Titled-Tuesday-Blitz-April-23-2024"]
[Site "Chess.com"]
[Date "2024.04.23"]
[Round "6"]
[White "LawrenceTrent"]
[Black "viviania"]
[Result "0-1"]
[WhiteElo "2711"]
[BlackElo "2906"]
[TimeControl "180+1"]
[EndTime "9:09:04 PDT"]
[Termination "viviania won by resignation"]

1. Nc3 {[%clk 0:03:00.8]} 1... Nf6 {[%clk 0:02:56.7]} 2. d4 {[%clk 0:03:00.8]}
2... d5 {[%clk 0:02:56.2]} 3. Bf4 {[%clk 0:03:01.2]} 3... c5 {[%clk 0:02:56.3]}
4. e3 {[%clk 0:02:57.9]} 4... cxd4 {[%clk 0:02:56.3]} 5. exd4 {[%clk 0:02:58.1]}
5... a6 {[%clk 0:02:56.7]} 6. Nf3 {[%clk 0:02:58.4]} 6... Bg4 {[%clk 0:02:54.9]}
7. h3 {[%clk 0:02:57.9]} 7... Bxf3 {[%clk 0:02:55.1]} 8. Qxf3 {[%clk 0:02:57.9]}
8... Nc6 {[%clk 0:02:55.1]} 9. O-O-O {[%clk 0:02:58.5]} 9... e6 {[%clk
0:02:55.3]} 10. g4 {[%clk 0:02:58.5]} 10... Bd6 {[%clk 0:02:50.1]} 11. Be3
{[%clk 0:02:57.1]} 11... Rc8 {[%clk 0:02:45]} 12. g5 {[%clk 0:02:57.3]} 12...
Nd7 {[%clk 0:02:43.9]} 13. h4 {[%clk 0:02:57.5]} 13... Na5 {[%clk 0:02:37.1]}
14. h5 {[%clk 0:02:53.7]} 14... Rxc3 {[%clk 0:02:29.7]} 15. bxc3 {[%clk
0:02:53.5]} 15... Qc7 {[%clk 0:02:29.8]} 16. Kd2 {[%clk 0:02:51.1]} 16... Nb6
{[%clk 0:02:27.7]} 17. Bd3 {[%clk 0:02:50.2]} 17... Nac4+ {[%clk 0:02:21.4]} 18.
Ke2 {[%clk 0:02:50.4]} 18... Na4 {[%clk 0:02:21.4]} 19. Kf1 {[%clk 0:02:45.5]}
19... Nxc3 {[%clk 0:02:20.8]} 20. Re1 {[%clk 0:02:45.8]} 20... Nxe3+ {[%clk
0:01:04.8]} 21. Rxe3 {[%clk 0:02:39.7]} 21... Bf4 {[%clk 0:01:02.7]} 22. Re1
{[%clk 0:02:00.6]} 22... Bxg5 {[%clk 0:01:02.5]} 23. Bf5 {[%clk 0:01:50.1]}
23... O-O {[%clk 0:00:57.5]} 24. Bd3 {[%clk 0:01:45.1]} 24... h6 {[%clk
0:00:50.2]} 25. Rg1 {[%clk 0:01:43.5]} 25... Rc8 {[%clk 0:00:47.9]} 26. Rg4
{[%clk 0:01:31.9]} 26... Qh2 {[%clk 0:00:40.1]} 27. Rg3 {[%clk 0:01:06.9]} 27...
Qh4 {[%clk 0:00:37.9]} 28. Rg4 {[%clk 0:01:00.7]} 28... Qxh5 {[%clk 0:00:27]}
29. Kg2 {[%clk 0:01:00.8]} 29... f5 {[%clk 0:00:26.7]} 30. Bxf5 {[%clk
0:00:59.7]} 30... exf5 {[%clk 0:00:23.8]} 31. Qxf5 {[%clk 0:00:59.9]} 31... Rf8
{[%clk 0:00:21.2]} 32. Qe6+ {[%clk 0:00:58.2]} 32... Qf7 {[%clk 0:00:16.7]} 33.
f3 {[%clk 0:00:54.7]} 33... Nb5 {[%clk 0:00:15.2]} 34. a4 {[%clk 0:00:44.2]}
34... Nc7 {[%clk 0:00:15.1]} 35. Qxf7+ {[%clk 0:00:44.1]} 35... Rxf7 {[%clk
0:00:15.3]} 36. Kg3 {[%clk 0:00:43.7]} 36... Bf6 {[%clk 0:00:15]} 37. c3 {[%clk
0:00:43.6]} 37... Kf8 {[%clk 0:00:14.1]} 38. Rb1 {[%clk 0:00:39.1]} 38... b5
{[%clk 0:00:13.9]} 39. Kf2 {[%clk 0:00:33.1]} 39... Re7 {[%clk 0:00:13.3]} 40.
Rg2 {[%clk 0:00:21.9]} 40... bxa4 {[%clk 0:00:12.9]} 41. Ra1 {[%clk 0:00:21.5]}
41... Nb5 {[%clk 0:00:12.6]} 42. Rxa4 {[%clk 0:00:21.2]} 42... Nxc3 {[%clk
0:00:12.4]} 43. Rxa6 {[%clk 0:00:21.4]} 43... Bxd4+ {[%clk 0:00:12.5]} 44. Kg3
{[%clk 0:00:21.3]} 44... Bf6 {[%clk 0:00:12.4]} 45. Rc2 {[%clk 0:00:19.9]} 45...
d4 {[%clk 0:00:11.3]} 46. Rb2 {[%clk 0:00:20.4]} 46... Kf7 {[%clk 0:00:11.2]}
47. Rab6 {[%clk 0:00:19.8]} 47... Rd7 {[%clk 0:00:11.2]} 48. Rb7 {[%clk
0:00:20.1]} 48... Rxb7 {[%clk 0:00:10.4]} 49. Rxb7+ {[%clk 0:00:21]} 49... Ke6
{[%clk 0:00:10.7]} 50. Kf4 {[%clk 0:00:21.2]} 50... Kd5 {[%clk 0:00:10.6]} 51.
Rd7+ {[%clk 0:00:20.6]} 51... Kc4 {[%clk 0:00:10.5]} 52. Kf5 {[%clk 0:00:20.9]}
52... h5 {[%clk 0:00:10.2]} 53. Kg6 {[%clk 0:00:20.2]} 53... h4 {[%clk
0:00:10.1]} 54. f4 {[%clk 0:00:21.1]} 54... h3 {[%clk 0:00:09.9]} 55. f5 {[%clk
0:00:22]} 55... h2 {[%clk 0:00:09.6]} 56. Kf7 {[%clk 0:00:22.9]} 56... h1=Q
{[%clk 0:00:09.1]} 57. Ke6 {[%clk 0:00:23.8]} 57... Qe4+ {[%clk 0:00:08.6]} 58.
Kf7 {[%clk 0:00:24.7]} 58... Qxf5 {[%clk 0:00:08.9]} 0-1

[Event "Early-Titled-Tuesday-Blitz-April-23-2024"]
[Site "Chess.com"]
[Date "2024.04.23"]
[Round "6"]
[White "GMKrikor"]
[Black "Susal_De_Silva"]
[Result "1-0"]
[WhiteElo "2896"]
[BlackElo "2689"]
[TimeControl "180+1"]
[EndTime "9:09:06 PDT"]
[Termination "GMKrikor won by resignation"]

1. Nf3 {[%clk 0:03:00.9]} 1... Nf6 {[%clk 0:03:00.2]} 2. c4 {[%clk 0:02:58]}
2... e6 {[%clk 0:03:00.5]} 3. Nc3 {[%clk 0:02:54]} 3... d5 {[%clk 0:02:58.1]} 4.
d4 {[%clk 0:02:54.1]} 4... Bb4 {[%clk 0:02:56.7]} 5. cxd5 {[%clk 0:02:47.8]}
5... exd5 {[%clk 0:02:56.4]} 6. Bf4 {[%clk 0:02:47.4]} 6... Ne4 {[%clk
0:02:50.1]} 7. Rc1 {[%clk 0:02:41.4]} 7... O-O {[%clk 0:02:47.3]} 8. e3 {[%clk
0:02:38.1]} 8... c6 {[%clk 0:02:43]} 9. Bd3 {[%clk 0:02:37.4]} 9... Re8 {[%clk
0:02:40]} 10. O-O {[%clk 0:02:33.9]} 10... Bd6 {[%clk 0:02:38.1]} 11. Bxd6
{[%clk 0:02:25.6]} 11... Qxd6 {[%clk 0:02:39]} 12. Qc2 {[%clk 0:02:25.3]} 12...
Nf6 {[%clk 0:02:27.3]} 13. Ne5 {[%clk 0:02:22.3]} 13... Nbd7 {[%clk 0:02:25.6]}
14. f4 {[%clk 0:02:22.7]} 14... Nf8 {[%clk 0:02:23.6]} 15. Rce1 {[%clk
0:02:15.2]} 15... N6d7 {[%clk 0:02:11.7]} 16. h3 {[%clk 0:02:09.3]} 16... f6
{[%clk 0:02:10.1]} 17. Nf3 {[%clk 0:02:07.4]} 17... Nb6 {[%clk 0:02:02.8]} 18.
b3 {[%clk 0:02:01.9]} 18... Bd7 {[%clk 0:02:00.5]} 19. Qd2 {[%clk 0:01:53.7]}
19... Re7 {[%clk 0:01:56.6]} 20. e4 {[%clk 0:01:41.3]} 20... dxe4 {[%clk
0:01:56.7]} 21. Nxe4 {[%clk 0:01:42.2]} 21... Qa3 {[%clk 0:01:56.9]} 22. Nc5
{[%clk 0:01:40.9]} 22... Rxe1 {[%clk 0:01:35.7]} 23. Rxe1 {[%clk 0:01:41.8]}
23... Rb8 {[%clk 0:01:25.6]} 24. Re7 {[%clk 0:01:28.8]} 24... Nd5 {[%clk
0:01:20.3]} 25. Nxd7 {[%clk 0:00:49.9]} 25... Qxe7 {[%clk 0:01:15.4]} 26. Nxb8
{[%clk 0:00:48.1]} 26... Qd6 {[%clk 0:01:13.6]} 27. Nxc6 {[%clk 0:00:38.6]}
27... bxc6 {[%clk 0:01:13.5]} 28. g3 {[%clk 0:00:37.2]} 28... Ne6 {[%clk
0:01:09.7]} 29. Bc4 {[%clk 0:00:35.2]} 29... Kf8 {[%clk 0:01:07.9]} 30. Kg2
{[%clk 0:00:32.5]} 30... Nb6 {[%clk 0:01:04.9]} 31. Qe3 {[%clk 0:00:30.3]} 31...
Nxc4 {[%clk 0:01:01.4]} 32. bxc4 {[%clk 0:00:30.2]} 32... Kf7 {[%clk 0:00:59]}
33. h4 {[%clk 0:00:19.8]} 33... a5 {[%clk 0:00:53.5]} 34. Qe4 {[%clk 0:00:16.1]}
34... a4 {[%clk 0:00:50.6]} 35. c5 {[%clk 0:00:15.5]} 35... Qb8 {[%clk
0:00:46.6]} 36. Qxc6 {[%clk 0:00:11.3]} 36... Qb2+ {[%clk 0:00:46.7]} 37. Kh3
{[%clk 0:00:11.9]} 37... Qxa2 {[%clk 0:00:43.6]} 38. d5 {[%clk 0:00:05.7]} 38...
Nf8 {[%clk 0:00:38.3]} 39. d6 {[%clk 0:00:06.3]} 39... Qe6+ {[%clk 0:00:34.1]}
40. g4 {[%clk 0:00:03.8]} 40... a3 {[%clk 0:00:34.2]} 41. Qb7+ {[%clk
0:00:02.7]} 41... Kg8 {[%clk 0:00:32.3]} 42. Qa6 {[%clk 0:00:02.2]} 42... Qb3
{[%clk 0:00:31.6]} 43. Kg3 {[%clk 0:00:02.6]} 43... a2 {[%clk 0:00:32]} 44. c6
{[%clk 0:00:03.1]} 44... Ne6 {[%clk 0:00:16.8]} 45. c7 {[%clk 0:00:02.1]} 45...
a1=Q {[%clk 0:00:04.7]} 46. c8=Q+ {[%clk 0:00:02.5]} 46... Kf7 {[%clk 0:00:05]}
47. Qxa1 {[%clk 0:00:02.5]} 1-0

[Event "Early-Titled-Tuesday-Blitz-April-23-2024"]
[Site "Chess.com"]
[Date "2024.04.23"]
[Round "6"]
[White "Silent-Killer100"]
[Black "BardArtem"]
[Result "0-1"]
[WhiteElo "2609"]
[BlackElo "2855"]
[TimeControl "180+1"]
[EndTime "9:09:06 PDT"]
[Termination "BardArtem won by resignation"]

1. e4 {[%clk 0:03:00.9]} 1... d5 {[%clk 0:02:56.1]} 2. exd5 {[%clk 0:03:00]}
2... c6 {[%clk 0:02:56.8]} 3. dxc6 {[%clk 0:02:59.2]} 3... Nxc6 {[%clk
0:02:57.7]} 4. Nf3 {[%clk 0:02:57]} 4... e5 {[%clk 0:02:56.3]} 5. Nc3 {[%clk
0:02:57.5]} 5... Nf6 {[%clk 0:02:55.6]} 6. Bb5 {[%clk 0:02:57]} 6... Bd6 {[%clk
0:02:55.4]} 7. d3 {[%clk 0:02:55]} 7... O-O {[%clk 0:02:55.4]} 8. Bxc6 {[%clk
0:02:52.3]} 8... bxc6 {[%clk 0:02:56.3]} 9. Ne4 {[%clk 0:02:47.9]} 9... Nxe4
{[%clk 0:02:52.8]} 10. dxe4 {[%clk 0:02:48.8]} 10... f5 {[%clk 0:02:53.5]} 11.
exf5 {[%clk 0:02:42.8]} 11... e4 {[%clk 0:02:53.2]} 12. Nd4 {[%clk 0:02:36.3]}
12... Qf6 {[%clk 0:02:36.2]} 13. O-O {[%clk 0:01:57.7]} 13... Rd8 {[%clk
0:02:29.3]} 14. c3 {[%clk 0:01:57.4]} 14... c5 {[%clk 0:02:26]} 15. Qb3+ {[%clk
0:01:55.3]} 15... Kh8 {[%clk 0:02:25.9]} 16. Ne6 {[%clk 0:01:10.8]} 16... Re8
{[%clk 0:02:15.1]} 17. Qd5 {[%clk 0:00:57.1]} 17... Bxe6 {[%clk 0:01:50]} 18.
fxe6 {[%clk 0:00:40.6]} 18... Rad8 {[%clk 0:01:38.3]} 19. Qxe4 {[%clk
0:00:35.3]} 19... Rxe6 {[%clk 0:01:35]} 20. Qc4 {[%clk 0:00:34.4]} 20... Rde8
{[%clk 0:01:27.6]} 21. Be3 {[%clk 0:00:33.3]} 21... Re4 {[%clk 0:01:25.9]} 22.
Qd5 {[%clk 0:00:32]} 22... R4e5 {[%clk 0:01:17.9]} 23. Qb7 {[%clk 0:00:28.4]}
23... Qh4 {[%clk 0:01:16.2]} 24. g3 {[%clk 0:00:26.5]} 24... Qh3 {[%clk
0:01:15.1]} 25. Qg2 {[%clk 0:00:24.1]} 25... Qe6 {[%clk 0:01:13]} 26. Rad1
{[%clk 0:00:24.4]} 26... Bf8 {[%clk 0:01:08.3]} 27. Rd2 {[%clk 0:00:24.8]} 27...
Qxa2 {[%clk 0:01:06.7]} 28. Rfd1 {[%clk 0:00:24.1]} 28... h6 {[%clk 0:01:05.5]}
29. Qc6 {[%clk 0:00:23.5]} 29... Qb3 {[%clk 0:01:01.5]} 30. Kg2 {[%clk
0:00:22.8]} 30... a5 {[%clk 0:01:01.3]} 31. Rd8 {[%clk 0:00:22.7]} 31... R5e6
{[%clk 0:00:54.7]} 32. Qd7 {[%clk 0:00:16]} 32... Rxd8 {[%clk 0:00:32.7]} 33.
Qxd8 {[%clk 0:00:16.9]} 33... Rf6 {[%clk 0:00:33.4]} 34. Bxc5 {[%clk 0:00:14]}
34... Qxb2 {[%clk 0:00:34]} 35. Rd2 {[%clk 0:00:12.5]} 35... Qxc3 {[%clk
0:00:24.8]} 36. Bxf8 {[%clk 0:00:11.1]} 36... Qf3+ {[%clk 0:00:25]} 37. Kg1
{[%clk 0:00:10.7]} 37... Rxf8 {[%clk 0:00:25.9]} 38. Qd3 {[%clk 0:00:09.4]}
38... Qxd3 {[%clk 0:00:23.8]} 39. Rxd3 {[%clk 0:00:10.3]} 39... a4 {[%clk
0:00:24.2]} 40. Ra3 {[%clk 0:00:10.6]} 40... Ra8 {[%clk 0:00:24.5]} 41. f4
{[%clk 0:00:11.1]} 41... g6 {[%clk 0:00:21.8]} 42. Kf2 {[%clk 0:00:11.5]} 42...
Kg7 {[%clk 0:00:22.6]} 43. Ke3 {[%clk 0:00:11.5]} 43... Kf6 {[%clk 0:00:23.1]}
44. Ke4 {[%clk 0:00:12]} 44... Ke6 {[%clk 0:00:19]} 45. g4 {[%clk 0:00:12.4]}
45... Kf6 {[%clk 0:00:19.5]} 46. h4 {[%clk 0:00:12.9]} 46... h5 {[%clk
0:00:17.4]} 47. gxh5 {[%clk 0:00:09.7]} 47... gxh5 {[%clk 0:00:18.3]} 48. f5
{[%clk 0:00:10]} 48... Ra5 {[%clk 0:00:18.6]} 49. Rg3 {[%clk 0:00:08]} 49... a3
{[%clk 0:00:17.5]} 50. Rg6+ {[%clk 0:00:07.6]} 50... Kf7 {[%clk 0:00:18]} 51.
Rg2 {[%clk 0:00:07]} 51... a2 {[%clk 0:00:18]} 0-1

[Event "Early-Titled-Tuesday-Blitz-April-23-2024"]
[Site "Chess.com"]
[Date "2024.04.23"]
[Round "6"]
[White "JeFumeDesClopes"]
[Black "DinaBelenkaya"]
[Result "1/2-1/2"]
[WhiteElo "2595"]
[BlackElo "2437"]
[TimeControl "180+1"]
[EndTime "9:09:06 PDT"]
[Termination "Game drawn - insufficient material"]

1. e4 {[%clk 0:03:00.9]} 1... c6 {[%clk 0:02:57.9]} 2. Nc3 {[%clk 0:03:00.9]}
2... d5 {[%clk 0:02:56]} 3. Qf3 {[%clk 0:03:01.6]} 3... dxe4 {[%clk 0:02:52.4]}
4. Nxe4 {[%clk 0:03:02.5]} 4... Nf6 {[%clk 0:02:50.1]} 5. Bc4 {[%clk 0:03:02.3]}
5... Nbd7 {[%clk 0:02:39.4]} 6. d4 {[%clk 0:03:02]} 6... e6 {[%clk 0:02:36.8]}
7. Ne2 {[%clk 0:03:01.5]} 7... Nxe4 {[%clk 0:02:35.7]} 8. Qxe4 {[%clk
0:03:01.8]} 8... Nf6 {[%clk 0:02:32.7]} 9. Qf3 {[%clk 0:03:01.8]} 9... Be7
{[%clk 0:02:20.5]} 10. Bf4 {[%clk 0:03:01.7]} 10... Qb6 {[%clk 0:02:18.7]} 11.
O-O-O {[%clk 0:03:00.2]} 11... Bd7 {[%clk 0:02:06]} 12. g4 {[%clk 0:02:51.4]}
12... Nd5 {[%clk 0:02:01.2]} 13. Be5 {[%clk 0:02:48.8]} 13... Bf6 {[%clk
0:01:55.9]} 14. Ng3 {[%clk 0:02:38.1]} 14... Bxe5 {[%clk 0:01:52.4]} 15. dxe5
{[%clk 0:02:38.6]} 15... O-O-O {[%clk 0:01:52.8]} 16. Ne4 {[%clk 0:02:36.9]}
16... Kb8 {[%clk 0:01:47]} 17. Qxf7 {[%clk 0:02:28.5]} 17... Bc8 {[%clk
0:01:15.1]} 18. Qxg7 {[%clk 0:02:03]} 18... Rhf8 {[%clk 0:01:04.9]} 19. Qxh7
{[%clk 0:01:53.5]} 19... Rf4 {[%clk 0:01:03.3]} 20. g5 {[%clk 0:01:46]} 20...
Qb4 {[%clk 0:00:59.2]} 21. Bxd5 {[%clk 0:01:43.3]} 21... exd5 {[%clk 0:00:50.5]}
22. Nd6 {[%clk 0:01:40.6]} 22... Bg4 {[%clk 0:00:50.3]} 23. Rd2 {[%clk
0:01:29.6]} 23... Bf3 {[%clk 0:00:37.2]} 24. Re1 {[%clk 0:01:23.1]} 24... Rh4
{[%clk 0:00:33.4]} 25. Qf7 {[%clk 0:01:15.9]} 25... Rf4 {[%clk 0:00:28.2]} 26.
Qe7 {[%clk 0:01:12.4]} 26... Qb6 {[%clk 0:00:18.3]} 27. g6 {[%clk 0:01:07.8]}
27... Rb4 {[%clk 0:00:17.7]} 28. c3 {[%clk 0:01:06.1]} 28... Ra4 {[%clk
0:00:15.7]} 29. a3 {[%clk 0:01:03.3]} 29... a5 {[%clk 0:00:08.6]} 30. g7 {[%clk
0:01:02.1]} 30... Ka7 {[%clk 0:00:09.1]} 31. Rg1 {[%clk 0:00:53.3]} 31... Qb3
{[%clk 0:00:08]} 32. Qxd8 {[%clk 0:00:47.7]} 32... Rxa3 {[%clk 0:00:08]} 33.
Nc8+ {[%clk 0:00:14.4]} 33... Ka6 {[%clk 0:00:08.4]} 34. Qb6+ {[%clk 0:00:14.7]}
34... Qxb6 {[%clk 0:00:08.7]} 35. Nxb6 {[%clk 0:00:15.6]} 35... Ra1+ {[%clk
0:00:09.2]} 36. Kc2 {[%clk 0:00:16]} 36... Rxg1 {[%clk 0:00:10.1]} 37. Na4
{[%clk 0:00:14.2]} 37... Rxg7 {[%clk 0:00:09.6]} 38. Nc5+ {[%clk 0:00:14.3]}
38... Kb6 {[%clk 0:00:08.5]} 39. b4 {[%clk 0:00:14.2]} 39... axb4 {[%clk
0:00:08.2]} 40. cxb4 {[%clk 0:00:15.1]} 40... Re7 {[%clk 0:00:08]} 41. Rd3
{[%clk 0:00:14.5]} 41... Be4 {[%clk 0:00:07.2]} 42. Nxe4 {[%clk 0:00:14.7]}
42... dxe4 {[%clk 0:00:08.1]} 43. Re3 {[%clk 0:00:14.8]} 43... Rxe5 {[%clk
0:00:08.8]} 44. f4 {[%clk 0:00:14.9]} 44... Rh5 {[%clk 0:00:08.4]} 45. Rxe4
{[%clk 0:00:15.2]} 45... Rxh2+ {[%clk 0:00:08.6]} 46. Kc3 {[%clk 0:00:15.8]}
46... Rf2 {[%clk 0:00:08.9]} 47. Kd4 {[%clk 0:00:15.2]} 47... Kb5 {[%clk
0:00:08.7]} 48. Ke5 {[%clk 0:00:15.9]} 48... b6 {[%clk 0:00:08.3]} 49. f5 {[%clk
0:00:16.4]} 49... c5 {[%clk 0:00:08.5]} 50. bxc5 {[%clk 0:00:17.3]} 50... bxc5
{[%clk 0:00:09.2]} 51. f6 {[%clk 0:00:17.6]} 51... Rh2 {[%clk 0:00:07.9]} 52.
Rf4 {[%clk 0:00:17.8]} 52... Rh8 {[%clk 0:00:08]} 53. f7 {[%clk 0:00:17.9]}
53... Rf8 {[%clk 0:00:08.5]} 54. Kd5 {[%clk 0:00:18]} 54... c4 {[%clk
0:00:08.1]} 55. Ke6 {[%clk 0:00:18.4]} 55... c3 {[%clk 0:00:07.8]} 56. Ke7
{[%clk 0:00:16.3]} 56... Rxf7+ {[%clk 0:00:07.4]} 57. Kxf7 {[%clk 0:00:17]}
57... c2 {[%clk 0:00:06.4]} 58. Rf1 {[%clk 0:00:17.5]} 58... Kc4 {[%clk
0:00:06.5]} 59. Ke6 {[%clk 0:00:18.4]} 59... Kd3 {[%clk 0:00:07]} 60. Kd5 {[%clk
0:00:18.9]} 60... Kd2 {[%clk 0:00:07.6]} 61. Kd4 {[%clk 0:00:18]} 61... c1=Q
{[%clk 0:00:07.4]} 62. Rxc1 {[%clk 0:00:18.6]} 62... Kxc1 {[%clk 0:00:07.7]}
1/2-1/2